fUST/lending_fUST_20240805
["ID","MTS","AMOUNT","RATE_DAILY","PERIOD"]
[334189097,1722820241852,-500.0,0.00013972,2]
[334189099,1722820241866,-501.13622303,0.00013972,2]
[334189101,1722820241877,-500.0,0.00013972,2]
[334189103,1722820241890,-500.0,0.00013972,2]
[334189105,1722820241902,-532.62727887,0.00013972,2]
[334189107,1722820241914,-500.0,0.00013972,2]
[334189109,1722820241927,-848.86751904,0.00014049,2]
[334189111,1722820241938,-500.0,0.00014234,2]
[334189113,1722820241950,-500.0,0.00014245,2]
[334189115,1722820241960,-589.6,0.00014245,2]
[334189117,1722820241971,-500.0,0.00014246,2]
[334189119,1722820241984,-500.0,0.00014246,2]
[334189121,1722820241997,-500.0,0.00014246,2]
[334189123,1722820242008,-500.0,0.00014246,2]
[334189125,1722820242021,-325.36337819,0.00014246,2]
[334189127,1722820242033,-500.0,0.00014246,2]
[334189129,1722820242045,-454.801927,0.00014247,2]
[334189131,1722820242057,-169.146938,0.00014247,2]
[334189133,1722820242077,-367.88690048,0.00014381,2]
[334189136,1722820242091,-6355.37449435,0.00014401,2]
[334189138,1722820242103,-591.5234809,0.00014476,2]
[334189140,1722820242114,-150.0,0.00014487,2]
[334189142,1722820242126,-848.86751904,0.00014499,2]
[334189143,1722820242137,-500.0,0.00014519,2]
[334189144,1722820242148,-589.6,0.00014519,2]
[334189145,1722820242160,-500.0,0.0001452,2]
[334189146,1722820242172,-500.0,0.0001452,2]
[334189147,1722820242184,-500.0,0.00014551,2]
[334189148,1722820242198,-154.83742071,0.0001469,2]
[334189149,1722820242210,-194.5599409,0.0001469,2]
[334189150,1722820242222,-269.66609186,0.0001469,2]
[334189151,1722820242233,-286.60806988,0.0001469,2]
[334189152,1722820242246,-2000.0,0.00014694,2]
[334189153,1722820242267,-589.6,0.00014783,2]
[334189154,1722820242289,-17583.2700696,0.00014784,2]
[334189155,1722820242304,-500.0,0.00014784,2]
[334189156,1722820242319,-500.0,0.00014793,2]
[334189157,1722820242331,-589.6,0.00014793,2]
[334189158,1722820242344,-217.23,0.00014794,2]
[334189159,1722820242356,-490.71560911,0.00014794,2]
[334189160,1722820242369,-200.0,0.00014795,2]
[334189161,1722820242380,-150.112233,0.000148,2]
[334189162,1722820242393,-848.86751904,0.0001495,2]
[334189163,1722820242405,-951.69950854,0.00015,2]
[334189164,1722820242416,-492.373335,0.00015,2]
[334189165,1722820242428,-1019.19670678,0.00015,2]
[334189166,1722820242440,-154.83742071,0.00015,2]
[334189167,1722820242452,-153.0,0.00015041,2]
[334189168,1722820242464,-589.6,0.00015067,2]
[334189169,1722820242476,-151.0,0.00015068,2]
[334189170,1722820242489,-193.557271,0.00015068,2]
[334189171,1722820242502,-193.557271,0.00015068,2]
[334189172,1722820242514,-151.0,0.00015068,2]
[334189173,1722820242527,-2081.0,0.000152,2]
[334189174,1722820242538,-206.9847165,0.00015256,2]
[334189176,1722820242549,-294.2573362,0.00015256,2]
[334189177,1722820242560,-206.9847165,0.00015256,2]
[334189178,1722820242572,-306.0,0.00015256,2]
[334189180,1722820242586,-500.0,0.00015331,2]
[334189182,1722820242600,-500.0,0.00015341,2]
[334189186,1722820242611,-848.86751904,0.000154,2]
[334189190,1722820242623,-4151.99,0.000155,2]
[334189193,1722820242635,-17583.2700696,0.00015539,2]
[334189196,1722820242646,-35918.5962648,0.00015549,2]
[334189199,1722820242658,-193.557271,0.00015549,2]
[334189203,1722820242670,-193.557271,0.00015549,2]
[334189207,1722820242681,-151.0,0.00015549,2]
[334189211,1722820242693,-151.0,0.00015549,2]
[334189215,1722820242708,-151.0,0.00015549,2]
[334189219,1722820242721,-185.314197,0.00015549,2]
[334189223,1722820242733,-151.0,0.00015549,2]
[334189226,1722820242744,-375.072416,0.00015549,2]
[334189229,1722820242755,-375.072416,0.00015549,2]
[334189232,1722820242766,-151.0,0.00015549,2]
[334189234,1722820242790,-177.078466,0.00015549,2]
[334189236,1722820242801,-151.0,0.00015549,2]
[334189238,1722820242814,-151.0,0.00015549,2]
[334189241,1722820242831,-151.0,0.00015549,2]
[334189244,1722820242843,-151.0,0.00015549,2]
[334189247,1722820242857,-589.6,0.00015557,2]
[334189251,1722820242869,-151.0,0.00015599,2]
[334189254,1722820242880,-151.0,0.00015599,2]
[334189257,1722820242891,-151.0,0.00015599,2]
[334189260,1722820242903,-151.493387,0.00015599,2]
[334189265,1722820242917,-151.0,0.00015599,2]
[334189274,1722820242931,-151.0,0.00015599,2]
[334189281,1722820242943,-151.0,0.00015599,2]
[334189288,1722820242955,-1272.97304658,0.00015608,2]
[334189296,1722820242967,-152.398185,0.00015609,2]
[334189302,1722820242978,-193.557271,0.00015609,2]
[334189309,1722820242990,-193.557271,0.00015609,2]
[334189317,1722820243002,-151.0,0.00015609,2]
[334189324,1722820243013,-151.0,0.00015609,2]
[334189329,1722820243027,-500.0,0.00015615,2]
[334189335,1722820243040,-589.6,0.00015615,2]
[334189343,1722820243053,-11182.1295023,0.00015689,5]
[334189348,1722820243064,-17583.2700696,0.0001569,2]
[334189355,1722820243077,-17583.2700696,0.00015698,2]
[334189361,1722820243089,-35166.5401392,0.00015699,2]
[334189366,1722820243101,-500.0,0.000157,2]
[334189371,1722820243113,-17583.2700696,0.00015702,2]
[334189375,1722820243132,-500.0,0.00015707,2]
[334189380,1722820243144,-589.6,0.00015707,2]
[334189384,1722820243156,-589.6,0.00015707,2]
[334189388,1722820243169,-29718.08740092,0.00015708,2]
[334189392,1722820243180,-1643.04146398,0.00015708,7]
[334189397,1722820243192,-3052.56944089,0.00015708,2]
[334189402,1722820243204,-1763.34953629,0.00015708,2]
[334189406,1722820243216,-1794.47294319,0.00015708,2]
[334189411,1722820243238,-1382.82376341,0.00015708,2]
[334189414,1722820243249,-2138.98947464,0.00015708,2]
[334189416,1722820243266,-1610.56614984,0.00015708,2]
[334189418,1722820243292,-2278.01854997,0.00015708,3]
[334189420,1722820243306,-1438.19153297,0.00015708,2]
[334189422,1722820243321,-500.0,0.00015708,2]
[334189424,1722820243332,-151.0,0.00015708,2]
[334189426,1722820243344,-7774.59967491,0.00015708,2]
[334189428,1722820243357,-375.072416,0.00015708,2]
[334189430,1722820243370,-375.072416,0.00015708,2]
[334189432,1722820243382,-151.0,0.00015708,2]
[334189434,1722820243394,-151.0,0.00015708,2]
[334189436,1722820243405,-9641.65829969,0.00015708,2]
[334189438,1722820243418,-151.0,0.00015708,2]
[334189440,1722820243430,-1162.72829906,0.00015708,2]
[334189441,1722820243446,-151.0,0.00015708,2]
[334189443,1722820243458,-159.24043179,0.00015708,2]
[334189445,1722820243470,-20757.81316463,0.00015708,2]
[334189447,1722820243483,-151.0,0.00015708,2]
[334189449,1722820243495,-151.0,0.00015708,2]
[334189451,1722820243506,-154.79103211,0.00015708,2]
[334189464,1722820243648,-573.10477979,0.00015708,2]
[334189466,1722820243660,-151.0,0.00015708,2]
[334189468,1722820243673,-151.216178,0.00015708,2]
[334189470,1722820243685,-152.307698,0.00015708,2]
[334189472,1722820243696,-533.92328189,0.00015708,2]
[334189474,1722820243708,-2162.43676373,0.00015708,2]
[334189476,1722820243719,-31194.09533306,0.00015709,5]
[334189478,1722820243731,-35010.17630372,0.00015709,2]
[334189480,1722820243742,-193.557271,0.00015709,2]
[334189481,1722820243753,-193.557271,0.00015709,2]
[334189483,1722820243765,-151.0,0.00015709,2]
[334189485,1722820243789,-151.0,0.00015709,2]
[334189487,1722820243801,-2148.82839666,0.00015709,2]
[334189490,1722820243821,-55546.15283682,0.00015709,2]
[334189492,1722820243833,-151.0,0.00015709,2]
[334189494,1722820243844,-375.072416,0.00015709,2]
[334189496,1722820243856,-375.072416,0.00015709,2]
[334189497,1722820243869,-151.0,0.00015709,2]
[334189499,1722820243880,-151.0,0.00015709,2]
[334189501,1722820243892,-151.0,0.00015709,2]
[334189503,1722820243905,-151.0,0.00015709,2]
[334189505,1722820243916,-151.0,0.00015709,2]
[334189507,1722820243929,-151.0,0.00015709,2]
[334189509,1722820243943,-845.47187628,0.0001571,2]
[334189511,1722820243955,-154.79103211,0.00015712,2]
[334189513,1722820243971,-1500.0,0.00015712,2]
[334189515,1722820243983,-154.79103211,0.00015712,2]
[334189517,1722820243994,-1500.0,0.00015712,2]
[334189519,1722820244005,-154.79103211,0.00015712,2]
[334189521,1722820244017,-500.0,0.00015733,2]
[334189523,1722820244028,-3548.67483166,0.00015733,2]
[334189525,1722820244040,-500.0,0.00015743,2]
[334189527,1722820244052,-413.91232311,0.00015744,2]
[334189529,1722820244064,-266.6760068,0.00015744,2]
[334189531,1722820244077,-154.79103211,0.00015744,2]
[334189533,1722820244090,-413.91232311,0.00015744,2]
[334189535,1722820244101,-165.53506923,0.00015744,2]
[334189537,1722820244113,-42338.60479892,0.00015744,2]
[334189539,1722820244125,-156.8188046,0.00015746,2]
[334189541,1722820244137,-156.8188046,0.00015746,2]
[334189543,1722820244150,-1991.50486571,0.00015746,2]
[334189545,1722820244161,-154.79103211,0.00015746,2]
[334189547,1722820244172,-2124.35920477,0.00015746,2]
[334189549,1722820244187,-1060.99846949,0.00015751,2]
[334189551,1722820244201,-500.0,0.0001584,2]
[334189553,1722820244213,-589.6,0.00015879,2]
[334189555,1722820244224,-150.112233,0.000159,2]
[334189557,1722820244236,-17583.2700696,0.00015941,2]
[334189559,1722820244247,-151.0,0.00015951,2]
[334189561,1722820244266,-150.337,0.0001601,2]
[334189563,1722820244278,-212.421,0.0001601,2]
[334189565,1722820244294,-275.725,0.0001601,2]
[334189567,1722820244311,-518.13,0.0001601,2]
[334189569,1722820244325,-1411.0,0.0001601,2]
[334189571,1722820244336,-193.557271,0.00016078,2]
[334189573,1722820244350,-193.557271,0.00016078,2]
[334189575,1722820244361,-294.257336,0.00016078,2]
[334189577,1722820244373,-413.9189201,0.00016078,2]
[334189579,1722820244385,-294.0929049,0.00016078,2]
[334189581,1722820244400,-306.0,0.00016078,2]
[334189583,1722820244413,-206.9847165,0.00016078,2]
[334189585,1722820244424,-294.257336,0.00016078,2]
[334189587,1722820244437,-306.0,0.00016078,2]
[334189589,1722820244451,-153.0,0.00016078,2]
[334189591,1722820244463,-294.2573362,0.00016078,2]
[334189593,1722820244474,-153.0,0.00016078,2]
[334189594,1722820244485,-294.0929047,0.00016078,2]
[334189596,1722820244500,-153.0,0.00016078,2]
[334189598,1722820244512,-168.443046,0.00016085,2]
[334189600,1722820244525,-601.0,0.000161,2]
[334189602,1722820244536,-500.0,0.00016119,2]
[334189604,1722820244548,-589.6,0.00016163,2]
[334189606,1722820244559,-240.02274241,0.00016347,2]
[334189608,1722820244571,-375.072416,0.00016347,2]
[334189610,1722820244582,-375.072416,0.00016347,2]
[334189612,1722820244593,-151.0,0.00016347,2]
[334189614,1722820244607,-17583.2700696,0.00016428,2]
[334189616,1722820244618,-500.0,0.00016437,2]
[334189618,1722820244631,-500.0,0.00016437,2]
[334189620,1722820244643,-500.0,0.00016437,2]
[334189622,1722820244654,-500.0,0.00016437,2]
[334189624,1722820244666,-214.31308632,0.00016437,2]
[334189626,1722820244677,-589.6,0.00016437,2]
[334189628,1722820244690,-193.557271,0.00016438,2]
[334189630,1722820244701,-193.557271,0.00016438,2]
[334189632,1722820244715,-151.0,0.00016438,2]
[334189634,1722820244727,-151.0,0.00016438,2]
[334189636,1722820244739,-151.0,0.00016438,2]
[334189638,1722820244750,-151.0,0.00016438,2]
[334189639,1722820244762,-151.0,0.00016438,2]
[334189641,1722820244773,-272.705351,0.00016438,2]
[334189643,1722820244785,-621.39205118,0.00016501,2]
[334189645,1722820244798,-532.00507807,0.00016532,2]
[334189647,1722820244809,-154.79103211,0.00016532,2]
[334189649,1722820244822,-155.0,0.0001656,2]
[334189651,1722820244833,-589.6,0.00016985,2]
[334189653,1722820244845,-9120.42186268,0.00017,2]
[334189655,1722820244857,-154.82195475,0.00017019,2]
[334189657,1722820244868,-151.0,0.00017019,2]
[334189659,1722820244880,-151.0,0.00017019,2]
[334189661,1722820244892,-151.0,0.00017019,2]
[334189663,1722820244905,-589.6,0.00017259,2]
[334189665,1722820244916,-620.06960256,0.00017327,2]
[334189667,1722820244929,-154.77557542,0.00017379,2]
[334189669,1722820244940,-589.6,0.00017401,2]
[334189671,1722820244952,-589.6,0.00017401,2]
[334189673,1722820244965,-154.79103211,0.00017403,2]
[334189674,1722820244977,-214.1767203,0.00017534,2]
[334189676,1722820244988,-17583.2700696,0.00017547,2]
[334189678,1722820245000,-589.6,0.00017556,2]
[334189680,1722820245012,-500.0,0.00017557,7]
[334189682,1722820245034,-500.0,0.00017557,7]
[334189684,1722820245046,-500.0,0.00017557,7]
[334189686,1722820245058,-296.14,0.00017557,7]
[334189688,1722820245071,-500.0,0.00017557,7]
[334189690,1722820245083,-500.0,0.00017557,7]
[334189692,1722820245095,-500.0,0.00017557,7]
[334189694,1722820245106,-500.0,0.00017557,7]
[334189696,1722820245118,-500.0,0.00017557,7]
[334189698,1722820245138,-500.0,0.00017557,7]
[334189700,1722820245151,-500.0,0.00017557,7]
[334189702,1722820245162,-500.0,0.00017557,7]
[334189704,1722820245174,-500.0,0.00017557,7]
[334189706,1722820245186,-500.0,0.00017557,7]
[334189708,1722820245197,-500.0,0.00017557,7]
[334189710,1722820245209,-500.0,0.00017557,7]
[334189712,1722820245222,-500.0,0.00017557,7]
[334189714,1722820245233,-500.0,0.00017557,7]
[334189716,1722820245250,-500.0,0.00017557,7]
[334189718,1722820245267,-500.0,0.00017557,7]
[334189719,1722820245279,-500.0,0.00017557,7]
[334189721,1722820245290,-500.0,0.00017557,7]
[334189723,1722820245304,-500.0,0.00017557,7]
[334189725,1722820245316,-500.0,0.00017557,7]
[334189727,1722820245328,-500.0,0.00017557,7]
[334189729,1722820245339,-500.0,0.00017557,7]
[334189731,1722820245355,-500.0,0.00017557,7]
[334189733,1722820245369,-500.0,0.00017557,7]
[334189735,1722820245380,-500.0,0.00017557,7]
[334189737,1722820245391,-500.0,0.00017557,7]
[334189739,1722820245403,-500.0,0.00017557,7]
[334189741,1722820245415,-500.0,0.00017557,7]
[334189743,1722820245427,-500.0,0.00017557,7]
[334189745,1722820245438,-500.0,0.00017557,7]
[334189747,1722820245458,-500.0,0.00017557,7]
[334189749,1722820245471,-500.0,0.00017557,7]
[334189751,1722820245483,-500.0,0.00017557,7]
[334189753,1722820245495,-500.0,0.00017557,7]
[334189755,1722820245506,-500.0,0.00017557,7]
[334189757,1722820245519,-500.0,0.00017557,7]
[334189759,1722820245554,-500.0,0.00017557,7]
[334189761,1722820245566,-500.0,0.00017557,7]
[334189763,1722820245577,-500.0,0.00017557,7]
[334189764,1722820245588,-500.0,0.00017557,7]
[334189766,1722820245599,-500.0,0.00017557,7]
[334189768,1722820245610,-500.0,0.00017557,7]
[334189770,1722820245622,-500.0,0.00017557,7]
[334189772,1722820245639,-500.0,0.00017557,7]
[334189774,1722820245650,-500.0,0.00017557,7]
[334189802,1722820245872,-500.0,0.00017557,7]
[334189804,1722820245884,-500.0,0.00017557,7]
[334189806,1722820245898,-500.0,0.00017557,7]
[334189809,1722820245909,-500.0,0.00017557,7]
[334189811,1722820245920,-500.0,0.00017557,7]
[334189814,1722820245931,-337.97,0.00017557,7]
[334189817,1722820245943,-193.557271,0.00017557,2]
[334189820,1722820245954,-193.557271,0.00017557,2]
[334189823,1722820245966,-155.0,0.000176,2]
[334189827,1722820245984,-1000.0,0.0001762,2]
[334189830,1722820245995,-1000.0,0.00017646,2]
[334189833,1722820246006,-1000.0,0.00017651,2]
[334189836,1722820246017,-1000.0,0.00017661,2]
[334189839,1722820246029,-1000.0,0.0001768,2]
[334189843,1722820246041,-867.950163,0.00017701,2]
[334189846,1722820246051,-175.9730502,0.00017715,2]
[334189849,1722820246062,-1000.0,0.00017724,2]
[334189851,1722820246074,-1000.0,0.00017738,2]
[334189852,1722820246087,-1000.0,0.00017751,2]
[334189856,1722820246099,-589.6,0.00017797,2]
[334189861,1722820246110,-589.6,0.00017797,2]
[334189863,1722820246120,-589.6,0.00017797,2]
[334189866,1722820246130,-589.6,0.00017797,2]
[334189869,1722820246140,-589.62024642,0.00017797,2]
[334189872,1722820246150,-1000.0,0.00017825,2]
[334189875,1722820246161,-1000.0,0.00017857,2]
[334189878,1722820246171,-1000.0,0.00017858,2]
[334189881,1722820246183,-1000.0,0.00017911,2]
[334189884,1722820246196,-2000.0,0.00018,2]
[334189888,1722820246208,-154.79103211,0.00018,2]
[334189892,1722820246219,-1000.0,0.0001807,2]
[334189896,1722820246231,-620.00348013,0.00018193,2]
[334189900,1722820246243,-193.557271,0.00018356,2]
[334189905,1722820246257,-193.557271,0.00018356,2]
[334189909,1722820246275,-151.0,0.00018356,2]
[334189913,1722820246287,-296.94154668,0.00018489,2]
[334189915,1722820246304,-907.85,0.000185,31]
[334189917,1722820246314,-907.85,0.000185,31]
[334189919,1722820246325,-907.85,0.000185,31]
[334189921,1722820246336,-907.85,0.000185,31]
[334189923,1722820246349,-907.85,0.000185,31]
[334189924,1722820246360,-907.85,0.000185,31]
[334189925,1722820246372,-907.85,0.000185,31]
[334189926,1722820246382,-907.85,0.000185,31]
[334189927,1722820246392,-907.85,0.000185,31]
[334189928,1722820246407,-907.85,0.000185,31]
[334189929,1722820246419,-907.85,0.000185,31]
[334189930,1722820246430,-907.85,0.000185,31]
[334189931,1722820246441,-907.85,0.000185,31]
[334189932,1722820246453,-907.85,0.000185,31]
[334189933,1722820246463,-907.85,0.000185,31]
[334189934,1722820246474,-907.85,0.000185,31]
[334189935,1722820246484,-907.85,0.000185,31]
[334189936,1722820246496,-907.85,0.000185,31]
[334189938,1722820246508,-907.85,0.000185,31]
[334189940,1722820246519,-907.85,0.000185,31]
[334189943,1722820246530,-250.3410689,0.00018557,2]
[334189946,1722820246541,-151.0,0.0001863,2]
[334189949,1722820246553,-151.0,0.0001863,2]
[334189952,1722820246564,-273.0,0.0001865,2]
[334189955,1722820246576,-17583.2700696,0.0001879,2]
[334189958,1722820246587,-154.77557542,0.00018799,2]
[334189960,1722820246597,-154.79103211,0.00018799,2]
[334189963,1722820246619,-154.79103211,0.00018799,2]
[334189964,1722820246630,-44653.57692784,0.000188,2]
[334189965,1722820246641,-375.072416,0.000188,2]
[334189966,1722820246651,-375.072416,0.000188,2]
[334189967,1722820246661,-151.0,0.000188,2]
[334189968,1722820246671,-151.0,0.000188,2]
[334189969,1722820246680,-151.0,0.000188,2]
[334189970,1722820246691,-151.0,0.000188,2]
[334189971,1722820246701,-151.0,0.000188,2]
[334189972,1722820246711,-151.0,0.000188,2]
[334189973,1722820246726,-231.69830706,0.00018825,2]
[334189974,1722820246736,-151.0,0.00018904,2]
[334189975,1722820246746,-151.0,0.00018904,2]
[334189976,1722820246757,-1000.0,0.00019,19]
[334189977,1722820246768,-156.11968405,0.00019,2]
[334189978,1722820246778,-1000.0,0.00019,2]
[334189987,1722820246880,-150.0,0.0001901,2]
[334189990,1722820246893,-506.0,0.0001901,2]
[334189993,1722820246905,-1411.0,0.0001901,2]
[334189995,1722820246916,-1272.97304654,0.00019035,2]
[334189998,1722820246934,-250.0,0.00019041,2]
[334190001,1722820246946,-186.18182011,0.000191,2]
[334190005,1722820246961,-620.00017401,0.00019103,2]
[334190007,1722820246972,-154.79103211,0.00019177,2]
[334190010,1722820246983,-561.1,0.00019178,2]
[334190013,1722820246995,-561.1,0.00019178,2]
[334190015,1722820247007,-561.1,0.00019178,2]
[334190018,1722820247019,-561.1,0.00019178,2]
[334190021,1722820247032,-561.1,0.00019178,2]
[334190024,1722820247045,-561.1,0.00019178,2]
[334190027,1722820247057,-561.1,0.00019178,2]
[334190030,1722820247070,-561.1,0.00019178,2]
[334190032,1722820247081,-561.1,0.00019178,2]
[334190035,1722820247093,-561.1,0.00019178,2]
[334190038,1722820247104,-561.1,0.00019178,2]
[334190041,1722820247115,-561.1,0.00019178,2]
[334190043,1722820247126,-561.1,0.00019178,2]
[334190046,1722820247146,-561.1,0.00019178,2]
[334190049,1722820247158,-561.1,0.00019178,2]
[334190052,1722820247169,-561.1,0.00019178,2]
[334190054,1722820247180,-561.1,0.00019178,2]
[334190058,1722820247192,-561.1,0.00019178,2]
[334190060,1722820247202,-561.1,0.00019178,2]
[334190062,1722820247214,-561.1,0.00019178,2]
[334190065,1722820247224,-561.1,0.00019178,2]
[334190068,1722820247235,-193.557271,0.00019178,2]
[334190070,1722820247251,-193.557271,0.00019178,2]
[334190073,1722820247268,-151.0,0.00019178,2]
[334190076,1722820247280,-151.0,0.00019178,2]
[334190078,1722820247291,-381.877664,0.00019178,2]
[334190081,1722820247305,-442.0504657,0.00019178,4]
[334190083,1722820247316,-5000.0,0.000192,2]
[334190085,1722820247328,-561.1,0.00019452,2]
[334190087,1722820247340,-151.0,0.00019452,2]
[334190089,1722820247360,-151.0,0.00019452,2]
[334190091,1722820247373,-214.0,0.000195,10]
[334190093,1722820247386,-1000.0,0.000195,2]
[334190095,1722820247396,-153.54720157,0.000196,2]
[334190097,1722820247407,-561.1,0.00019726,2]
[334190099,1722820247418,-200.0,0.00019973,2]
[334190101,1722820247430,-21052.39176769,0.0002,2]
[334190103,1722820247441,-435.0,0.0002,2]
[334190106,1722820247464,-300.10160331,0.0002,2]
[334190108,1722820247478,-154.71377951,0.0002,2]
[334190110,1722820247489,-564.47200611,0.0002,2]
[334190112,1722820247501,-192.54960295,0.0002,2]
[334190114,1722820247512,-222.09576996,0.0002,2]
[334190116,1722820247524,-2349.35324221,0.0002,2]
[334190118,1722820247536,-53061.47233182,0.0002,2]
[334190120,1722820247547,-99999.999999,0.0002,2]
[334190122,1722820247563,-1854.49623106,0.0002,2]
[334190123,1722820247575,-4282.03399331,0.0002,2]
[334190124,1722820247587,-183.0,0.0002,2]
[334190125,1722820247598,-12900.0,0.0002,2]
[334190126,1722820247609,-524.0,0.0002,2]
[334190127,1722820247620,-154.72922386,0.0002,2]
[334190128,1722820247631,-158.91248787,0.0002,2]
[334190129,1722820247641,-3133.58847844,0.0002,2]
[334190130,1722820247652,-235.98044981,0.0002,2]
[334190131,1722820247663,-174.28065253,0.0002,2]
[334190132,1722820247679,-175.37858355,0.0002,2]
[334190133,1722820247691,-1363.32005026,0.0002,2]
[334190134,1722820247702,-561.19295341,0.0002,2]
[334190135,1722820247713,-193.557271,0.0002,2]
[334190136,1722820247724,-193.557279,0.0002,2]
[334190137,1722820247735,-375.072416,0.0002,2]
[334190138,1722820247746,-7892.93407902,0.0002,2]
[334190139,1722820247757,-375.072416,0.0002,2]
[334190140,1722820247768,-375.072416,0.0002,2]
[334190141,1722820247784,-375.072416,0.0002,2]
[334190142,1722820247795,-10000.0,0.0002,2]
[334190143,1722820247806,-10000.0,0.0002,2]
[334190144,1722820247817,-10000.0,0.0002,2]
[334190145,1722820247828,-10000.0,0.0002,2]
[334190146,1722820247839,-10000.0,0.0002,2]
[334190147,1722820247849,-10000.0,0.0002,2]
[334190148,1722820247862,-14172.64166692,0.0002,2]
[334190149,1722820247874,-151.0,0.0002,2]
[334190150,1722820247885,-151.0,0.0002,2]
[334190151,1722820247896,-1865.94667552,0.0002,2]
[334190152,1722820247908,-150.0,0.0002,2]
[334190153,1722820247919,-151.36378773,0.0002,2]
[334190154,1722820247930,-151.0,0.0002,2]
[334190155,1722820247940,-151.0,0.0002,2]
[334190156,1722820247950,-151.0,0.0002,2]
[334190157,1722820247961,-216.410628,0.0002,2]
[334190158,1722820247972,-151.0,0.0002,2]
[334190160,1722820247989,-151.0,0.0002,2]
[334190162,1722820248001,-151.0,0.0002,2]
[334190164,1722820248012,-151.0,0.0002,2]
[334190166,1722820248023,-1000.0,0.0002,2]
[334190168,1722820248034,-620.0000087,0.00020058,2]
[334190170,1722820248045,-3548.67483166,0.00020094,2]
[334190172,1722820248056,-154.79103211,0.0002028,2]
[334190174,1722820248068,-907.85,0.000205,31]
[334190176,1722820248080,-907.85,0.000205,31]
[334190179,1722820248097,-907.85,0.000205,31]
[334190181,1722820248109,-907.85,0.000205,31]
[334190183,1722820248120,-907.85,0.000205,31]
[334190185,1722820248132,-907.85,0.000205,31]
[334190187,1722820248144,-907.85,0.000205,31]
[334190189,1722820248157,-907.85,0.000205,31]
[334190191,1722820248168,-907.85,0.000205,31]
[334190193,1722820248180,-907.85,0.000205,31]
[334190195,1722820248191,-907.85,0.000205,31]
[334190197,1722820248203,-907.85,0.000205,31]
[334190199,1722820248214,-907.85,0.000205,31]
[334190201,1722820248225,-907.85,0.000205,31]
[334190203,1722820248237,-907.85,0.000205,31]
[334190205,1722820248248,-907.85,0.000205,31]
[334190207,1722820248264,-907.85,0.000205,31]
[334190209,1722820248278,-907.85,0.000205,31]
[334190211,1722820248289,-907.85,0.000205,31]
[334190213,1722820248300,-907.85,0.000205,31]
[334190214,1722820248318,-726.936155,0.00020548,2]
[334190217,1722820248330,-5371.43173583,0.00020551,15]
[334190219,1722820248342,-4245.60821056,0.0002066,7]
[334190220,1722820248355,-454.801927,0.00020707,2]
[334190222,1722820248367,-154.79103211,0.00020721,2]
[334190224,1722820248377,-258.01930061,0.00021,2]
[334190226,1722820248389,-10127.28315194,0.00021,2]
[334190228,1722820248401,-232.57543015,0.00021,2]
[334190230,1722820248415,-5000.0,0.00021,2]
[334190231,1722820248425,-3000.0,0.00021,2]
[334190233,1722820248436,-150.0,0.00021,2]
[334190235,1722820248448,-3000.0,0.0002101,2]
[334190237,1722820248459,-849.39914621,0.00021011,2]
[334190240,1722820248471,-19002.72054784,0.00021012,2]